[Event "32nd NATO Chess Championship"]
[Site "Tartu, Estonia"]
[Date "2022.06.29"]
[Round "4.26"]
[White "Farrell, John"]
[Black "Papler, Peter"]
[Result "1-0"]
[TimeControl "90 min + 30 sec increment from move one"]
[WhiteFideId "2024608"]
[BlackFideId "14609770"]
[WhiteElo "1913"]
[BlackElo "1714"]

1. c4 {[%clk 01:30:54]} {[%emt 00:00:05]} Nf6 {[%clk 01:30:33]} {[%emt
00:00:27]} 2. g3 {[%clk 01:31:14]} {[%emt 00:00:10]} c6 {[%clk 01:30:47]}
{[%emt 00:00:15]} 3. Nf3 {[%clk 01:31:13]} {[%emt 00:00:32]} d6 {[%clk
01:30:54]} {[%emt 00:00:24]} 4. d4 {[%clk 01:31:10]} {[%emt 00:00:32]} Qc7
{[%clk 01:30:55]} {[%emt 00:00:29]} 5. Nc3 {[%clk 01:30:44]} {[%emt 00:00:56]}
Nbd7 {[%clk 01:31:05]} {[%emt 00:00:19]} 6. Bg2 {[%clk 01:29:33]} {[%emt
00:01:41]} e5 {[%clk 01:31:24]} {[%emt 00:00:11]} 7. d5 {[%clk 01:25:44]}
{[%emt 00:04:20]} Be7 {[%clk 01:31:32]} {[%emt 00:00:22]} 8. e4 {[%clk
01:25:06]} {[%emt 00:01:08]} O-O {[%clk 01:31:42]} {[%emt 00:00:18]} 9. O-O
{[%clk 01:25:30]} {[%emt 00:00:07]} a6 {[%clk 01:30:55]} {[%emt 00:01:19]} 10.
h3 {[%clk 01:24:56]} {[%emt 00:01:04]} Rb8 {[%clk 01:25:07]} {[%emt 00:06:18]}
11. Be3 {[%clk 01:24:03]} {[%emt 00:01:22]} c5 {[%clk 01:25:14]} {[%emt
00:00:24]} 12. a4 {[%clk 01:23:40]} {[%emt 00:00:53]} Qa5 {[%clk 01:22:56]}
{[%emt 00:02:48]} 13. Qe2 {[%clk 01:22:32]} {[%emt 00:01:38]} Re8 {[%clk
01:19:36]} {[%emt 00:03:50]} 14. Bd2 {[%clk 01:21:22]} {[%emt 00:01:39]} Qc7
{[%clk 01:19:04]} {[%emt 00:01:02]} 15. Ne1 {[%clk 01:17:40]} {[%emt 00:04:12]}
Nf8 {[%clk 01:19:08]} {[%emt 00:00:27]} 16. Nd3 {[%clk 01:17:37]} {[%emt
00:00:32]} Bd7 {[%clk 01:17:59]} {[%emt 00:01:39]} 17. Rfc1 {[%clk 01:15:26]}
{[%emt 00:02:41]} Qc8 {[%clk 01:17:44]} {[%emt 00:00:45]} 18. Kh2 {[%clk
01:15:44]} {[%emt 00:00:11]} Bd8 {[%clk 01:08:46]} {[%emt 00:09:28]} 19. f4
{[%clk 01:12:10]} {[%emt 00:04:04]} Ng6 {[%clk 01:02:23]} {[%emt 00:06:53]} 20.
fxe5 {[%clk 01:10:01]} {[%emt 00:02:38]} dxe5 {[%clk 00:59:04]} {[%emt
00:03:49]} 21. Be3 {[%clk 01:09:09]} {[%emt 00:01:22]} Be7 {[%clk 00:56:55]}
{[%emt 00:02:39]} 22. Qf2 {[%clk 01:06:30]} {[%emt 00:03:09]} b6 {[%clk
00:55:18]} {[%emt 00:02:08]} 23. a5 {[%clk 01:04:12]} {[%emt 00:02:47]} b5
{[%clk 00:50:35]} {[%emt 00:05:13]} 24. cxb5 {[%clk 00:58:57]} {[%emt
00:05:45]} c4 {[%clk 00:49:40]} {[%emt 00:01:25]} 25. Na4 {[%clk 00:58:09]}
{[%emt 00:01:17]} Bxb5 {[%clk 00:47:57]} {[%emt 00:02:12]} 26. Nb6 {[%clk
00:57:36]} {[%emt 00:01:04]} Qc7 {[%clk 00:46:32]} {[%emt 00:01:56]} 27. Ne1
{[%clk 00:48:14]} {[%emt 00:09:51]} Nd7 {[%clk 00:45:31]} {[%emt 00:01:32]} 28.
Nxd7 {[%clk 00:46:21]} {[%emt 00:02:23]} Qxd7 {[%clk 00:45:21]} {[%emt
00:00:40]} 29. Nc2 {[%clk 00:45:47]} {[%emt 00:01:03]} Rec8 {[%clk 00:43:47]}
{[%emt 00:02:02]} 30. Qd2 {[%clk 00:42:36]} {[%emt 00:03:43]} Ba4 {[%clk
00:33:39]} {[%emt 00:10:38]} 31. Na3 {[%clk 00:39:39]} {[%emt 00:03:27]} Bb4
{[%clk 00:25:57]} {[%emt 00:08:13]} 32. Qf2 {[%clk 00:39:58]} {[%emt 00:00:10]}
c3 {[%clk 00:22:25]} {[%emt 00:04:03]} 33. bxc3 {[%clk 00:31:36]} {[%emt
00:08:52]} Bxc3 {[%clk 00:21:28]} {[%emt 00:01:27]} 34. Rab1 {[%clk 00:31:14]}
{[%emt 00:00:52]} Bxa5 {[%clk 00:21:20]} {[%emt 00:00:38]} 35. Rxb8 {[%clk
00:31:18]} {[%emt 00:00:26]} Rxb8 {[%clk 00:21:40]} {[%emt 00:00:10]} 36. Nc4
{[%clk 00:30:43]} {[%emt 00:01:04]} Bd8 {[%clk 00:20:14]} {[%emt 00:01:56]} 37.
Nb6 {[%clk 00:28:33]} {[%emt 00:02:40]} Bxb6 {[%clk 00:15:01]} {[%emt
00:05:44]} 38. Bxb6 {[%clk 00:28:54]} {[%emt 00:00:09]} Bb5 {[%clk 00:11:29]}
{[%emt 00:04:02]} 39. Bc7 {[%clk 00:28:21]} {[%emt 00:01:02]} Rb7 {[%clk
00:10:40]} {[%emt 00:01:19]} 40. d6 {[%clk 00:27:30]} {[%emt 00:01:21]} Nf8
{[%clk 00:10:18]} {[%emt 00:00:53]} 41. Qc5 {[%clk 00:26:07]} {[%emt 00:01:53]}
Ne6 {[%clk 00:09:53]} {[%emt 00:00:55]} 42. Qxe5 {[%clk 00:25:25]} {[%emt
00:01:12]} f6 {[%clk 00:06:37]} {[%emt 00:03:47]} 43. Qd5 {[%clk 00:24:30]}
{[%emt 00:01:25]} Qc8 {[%clk 00:03:28]} {[%emt 00:03:39]} 44. e5 {[%clk
00:24:12]} {[%emt 00:00:48]} Ra7 {[%clk 00:03:20]} {[%emt 00:00:38]} 45. exf6
{[%clk 00:23:31]} {[%emt 00:01:10]} gxf6 {[%clk 00:03:30]} {[%emt 00:00:21]} 46.
Re1 {[%clk 00:20:57]} {[%emt 00:03:04]} Bd7 {[%clk 00:03:41]} {[%emt 00:00:20]}
47. Bb6 {[%clk 00:19:05]} {[%emt 00:02:21]} 1-0

[Event "32nd NATO Chess Championship"]
[Site "Tartu, Estonia"]
[Date "2022.06.29"]
[Round "4.28"]
[White "Pirs, Matjaz"]
[Black "Charles, Freddy"]
[Result "1-0"]
[TimeControl "90 min + 30 sec increment from move one"]
[WhiteFideId "14606941"]
[BlackFideId "1742"]
[WhiteElo "1965"]
[BlackElo "1742"]

1. d4 {[%clk 01:30:57]} Nf6 {[%clk 01:30:47]} {[%emt 00:00:13]} 2. Bf4 {[%clk
01:31:19]} {[%emt 00:00:08]} d6 {[%clk 01:31:09]} {[%emt 00:00:08]} 3. c4
{[%clk 01:30:37]} {[%emt 00:01:11]} c6 {[%clk 01:31:10]} {[%emt 00:00:29]} 4.
Nc3 {[%clk 01:30:52]} {[%emt 00:00:15]} Qa5 {[%clk 01:29:59]} {[%emt 00:01:42]}
5. Qd2 {[%clk 01:26:13]} {[%emt 00:05:10]} Bf5 {[%clk 01:27:55]} {[%emt
00:02:33]} 6. e4 {[%clk 01:21:06]} {[%emt 00:05:38]} Bg6 {[%clk 01:27:20]}
{[%emt 00:01:05]} 7. f3 {[%clk 01:18:57]} {[%emt 00:02:38]} Nbd7 {[%clk
01:24:04]} {[%emt 00:03:45]} 8. a3 {[%clk 01:19:07]} {[%emt 00:00:22]} e5
{[%clk 01:23:31]} {[%emt 00:01:02]} 9. Be3 {[%clk 01:17:55]} {[%emt 00:01:42]}
Be7 {[%clk 01:23:08]} {[%emt 00:00:53]} 10. Nge2 {[%clk 01:16:33]} {[%emt
00:01:52]} h6 {[%clk 01:18:24]} {[%emt 00:05:14]} 11. h4 {[%clk 01:00:05]}
{[%emt 00:16:57]} c5 {[%clk 01:10:59]} {[%emt 00:07:55]} 12. d5 {[%clk
00:57:13]} {[%emt 00:03:22]} a6 {[%clk 01:05:30]} {[%emt 00:06:00]} 13. g4
{[%clk 00:51:25]} {[%emt 00:06:17]} Qc7 {[%clk 00:55:48]} {[%emt 00:10:11]} 14.
Ng3 {[%clk 00:51:41]} {[%emt 00:00:13]} O-O-O {[%clk 00:54:50]} {[%emt
00:01:29]} 15. Bd3 {[%clk 00:49:29]} {[%emt 00:02:42]} Ne8 {[%clk 00:52:49]}
{[%emt 00:02:31]} 16. Ke2 {[%clk 00:48:01]} {[%emt 00:01:58]} f6 {[%clk
00:50:42]} {[%emt 00:02:37]} 17. h5 {[%clk 00:48:09]} {[%emt 00:00:23]} Bh7
{[%clk 00:50:10]} {[%emt 00:01:01]} 18. b4 {[%clk 00:47:11]} {[%emt 00:01:29]}
b6 {[%clk 00:47:54]} {[%emt 00:02:47]} 19. Rab1 {[%clk 00:45:22]} {[%emt
00:02:18]} Kb8 {[%clk 00:43:12]} {[%emt 00:05:12]} 20. Rb3 {[%clk 00:41:45]}
{[%emt 00:04:07]} Ka8 {[%clk 00:43:31]} {[%emt 00:00:11]} 21. Rhb1 {[%clk
00:42:08]} {[%emt 00:00:07]} Rb8 {[%clk 00:42:58]} {[%emt 00:01:02]} 22. Nf5
{[%clk 00:39:02]} {[%emt 00:03:37]} Bd8 {[%clk 00:42:09]} {[%emt 00:01:19]} 23.
Kf2 {[%clk 00:34:41]} {[%emt 00:04:50]} Bxf5 {[%clk 00:39:27]} {[%emt
00:03:12]} 24. exf5 {[%clk 00:34:43]} {[%emt 00:00:29]} Qa7 {[%clk 00:37:32]}
{[%emt 00:02:26]} 25. Ne4 {[%clk 00:35:03]} {[%emt 00:00:09]} a5 {[%clk
00:34:48]} {[%emt 00:03:14]} 26. bxa5 {[%clk 00:34:27]} {[%emt 00:01:06]} Qxa5
{[%clk 00:34:30]} {[%emt 00:00:47]} 27. Qc1 {[%clk 00:32:45]} {[%emt 00:02:10]}
Qa7 {[%clk 00:30:13]} {[%emt 00:04:49]} 28. Qd1 {[%clk 00:31:34]} {[%emt
00:01:41]} Qc7 {[%clk 00:29:12]} {[%emt 00:01:31]} 29. Bc2 {[%clk 00:31:26]}
{[%emt 00:00:38]} 1-0

[Event "32nd NATO Chess Championship"]
[Site "Tartu, Estonia"]
[Date "2022.06.29"]
[Round "4.29"]
[White "Wendler, Edward"]
[Black "Smit, Jan"]
[Result "1-0"]
[TimeControl "90 min + 30 sec increment from move one"]
[WhiteFideId "30956277"]
[BlackFideId "1052047"]
[WhiteElo "1839"]
[BlackElo "1741"]

1. e4 {[%clk 01:30:56]} {[%emt 00:00:03]} g6 {[%clk 01:30:49]} {[%emt
00:00:12]} 2. d4 {[%clk 01:31:05]} {[%emt 00:00:20]} Bg7 {[%clk 01:31:17]}
{[%emt 00:00:02]} 3. Nf3 {[%clk 01:29:48]} {[%emt 00:01:47]} d6 {[%clk
01:31:39]} {[%emt 00:00:09]} 4. Bc4 {[%clk 01:29:38]} {[%emt 00:00:40]} Nf6
{[%clk 01:31:38]} {[%emt 00:00:30]} 5. Nc3 {[%emt 00:02:38]} c6 {[%clk
01:30:16]} {[%emt 00:00:44]} 6. Bb3 {[%clk 01:26:07]} {[%emt 00:03:01]} b5
{[%clk 01:27:44]} {[%emt 00:03:02]} 7. a3 {[%clk 01:18:06]} {[%emt 00:08:31]}
a5 {[%clk 01:22:31]} {[%emt 00:05:42]} 8. O-O {[%clk 01:16:26]} {[%emt
00:02:09]} O-O {[%clk 01:20:03]} {[%emt 00:02:59]} 9. h3 {[%clk 01:08:30]}
{[%emt 00:08:25]} Qc7 {[%clk 01:09:29]} {[%emt 00:11:05]} 10. e5 {[%clk
01:01:52]} {[%emt 00:07:08]} Nd5 {[%clk 00:49:25]} {[%emt 00:20:33]} 11. Nxd5
{[%clk 00:55:20]} {[%emt 00:07:02]} cxd5 {[%clk 00:49:46]} {[%emt 00:00:10]} 12.
Bxd5 {[%clk 00:54:58]} {[%emt 00:00:51]} Ra7 {[%clk 00:46:57]} {[%emt
00:03:19]} 13. Bf4 {[%clk 00:54:03]} {[%emt 00:01:24]} Nc6 {[%clk 00:42:04]}
{[%emt 00:05:24]} 14. exd6 {[%clk 00:49:07]} {[%emt 00:05:26]} exd6 {[%clk
00:42:30]} {[%emt 00:00:04]} 15. Re1 {[%clk 00:48:51]} {[%emt 00:00:46]} Be6
{[%clk 00:38:55]} {[%emt 00:04:05]} 16. Bxe6 {[%clk 00:39:56]} {[%emt
00:09:25]} fxe6 {[%clk 00:39:23]} {[%emt 00:00:03]} 17. Bg3 {[%clk 00:39:31]}
{[%emt 00:00:54]} e5 {[%clk 00:28:24]} {[%emt 00:11:30]} 18. dxe5 {[%clk
00:36:17]} {[%emt 00:03:43]} dxe5 {[%clk 00:26:18]} {[%emt 00:02:36]} 19. Qd5+
{[%clk 00:32:29]} {[%emt 00:04:18]} Kh8 {[%clk 00:24:19]} {[%emt 00:02:29]} 20.
Nxe5 {[%clk 00:31:47]} {[%emt 00:01:11]} Bxe5 {[%clk 00:22:13]} {[%emt
00:02:36]} 21. Bxe5+ {[%clk 00:27:05]} {[%emt 00:05:12]} Nxe5 {[%clk 00:22:41]}
{[%emt 00:00:02]} 22. Qxe5+ {[%clk 00:27:25]} {[%emt 00:00:11]} Kg8 {[%clk
00:22:13]} {[%emt 00:00:58]} 23. Qxb5 {[%clk 00:22:09]} {[%emt 00:05:46]} Qxc2
{[%clk 00:17:49]} {[%emt 00:04:54]} 24. Re2 {[%clk 00:21:58]} {[%emt 00:00:41]}
Qf5 {[%clk 00:13:26]} {[%emt 00:04:53]} 25. Qc4+ {[%clk 00:18:24]} {[%emt
00:04:04]} Rff7 {[%clk 00:11:28]} {[%emt 00:02:29]} 26. Rae1 {[%clk 00:12:42]}
{[%emt 00:06:11]} Rac7 {[%clk 00:10:30]} {[%emt 00:01:29]} 27. Re8+ {[%clk
00:06:23]} {[%emt 00:06:48]} Kg7 {[%clk 00:10:58]} {[%emt 00:00:02]} 28. Qd4+
{[%clk 00:06:44]} {[%emt 00:00:09]} Qf6 {[%clk 00:05:27]} {[%emt 00:06:01]} 29.
Qxf6+ {[%clk 00:03:37]} {[%emt 00:03:37]} Kxf6 {[%clk 00:05:20]} {[%emt
00:00:37]} 30. R1e2 {[%clk 00:02:59]} {[%emt 00:01:08]} a4 {[%clk 00:03:52]}
{[%emt 00:01:58]} 31. R8e4 {[%clk 00:02:43]} {[%emt 00:00:45]} Ra7 {[%clk
00:02:01]} {[%emt 00:02:22]} 32. Rf4+ {[%clk 00:03:09]} {[%emt 00:00:04]} Kg7
{[%clk 00:02:27]} {[%emt 00:00:05]} 33. Rxf7+ {[%clk 00:03:30]} {[%emt
00:00:09]} Kxf7 {[%clk 00:02:49]} {[%emt 00:00:07]} 34. Re4 {[%clk 00:02:55]}
{[%emt 00:01:05]} Kf6 {[%clk 00:03:17]} {[%emt 00:00:03]} 35. f3 {[%clk
00:03:16]} {[%emt 00:00:08]} h5 {[%clk 00:03:01]} {[%emt 00:00:46]} 36. h4
{[%clk 00:03:36]} {[%emt 00:00:10]} Kf5 {[%clk 00:02:37]} {[%emt 00:00:54]} 37.
Kh2 {[%clk 00:03:43]} {[%emt 00:00:22]} Ra5 {[%clk 00:02:02]} {[%emt 00:01:06]}
38. Kg3 {[%clk 00:03:57]} {[%emt 00:00:16]} Kf6 {[%clk 00:02:09]} {[%emt
00:00:24]} 39. Kf4 {[%clk 00:02:00]} {[%emt 00:02:26]} g5+ {[%clk 00:00:54]}
{[%emt 00:01:45]} 40. hxg5+ {[%clk 00:02:15]} {[%emt 00:00:14]} Rxg5 {[%clk
00:01:21]} {[%emt 00:00:02]} 41. Re6+ {[%clk 00:01:29]} {[%emt 00:01:17]} 1-0

[Event "32nd NATO Chess Championship"]
[Site "Tartu, Estonia"]
[Date "2022.06.29"]
[Round "4.30"]
[White "Adolfssen, Rico"]
[Black "Rizihs, Valerijs"]
[Result "0-1"]
[TimeControl "90 min + 30 sec increment from move one"]
[WhiteFideId "1400371"]
[BlackFideId "11603380"]
[WhiteElo "1837"]
[BlackElo "1619"]

1. e4 {[%clk 01:30:36]} c5 {[%clk 00:00:00]} 2. f4 {[%clk 01:30:36]} Nc6 {[%clk
00:00:00]} 3. Nc3 {[%clk 01:30:36]} e6 {[%clk 00:00:00]} 4. Nf3 {[%clk
01:30:36]} a6 {[%clk 00:00:00]} 5. a4 {[%clk 01:30:36]} d5 {[%clk 00:00:00]} 6.
e5 {[%clk 01:30:36]} Nh6 {[%clk 00:00:00]} 7. Ne2 {[%clk 01:30:36]} Nf5 {[%clk
00:00:00]} 8. d4 {[%clk 01:30:36]} cxd4 {[%clk 00:00:00]} 9. Nexd4 {[%clk
01:30:36]} Ncxd4 {[%clk 00:00:00]} 10. Nxd4 {[%clk 01:30:36]} Qh4+ {[%clk
00:00:00]} 11. g3 {[%clk 01:30:36]} Nxg3 {[%clk 00:00:00]} 12. Nf3 {[%clk
01:30:36]} Qh5 {[%clk 00:00:00]} 13. Rg1 {[%clk 01:30:36]} Nxf1 {[%clk
00:00:00]} 14. Rxf1 {[%clk 01:30:36]} Bc5 {[%clk 00:00:00]} 15. Qe2 {[%clk
01:30:36]} Bd7 {[%clk 00:00:00]} 16. Be3 {[%clk 01:30:36]} Rc8 {[%clk
00:00:00]} 17. Bxc5 {[%clk 01:30:36]} Rxc5 {[%clk 00:00:00]} 18. Rg1 {[%clk
01:30:36]} g6 {[%clk 00:00:00]} 19. Rg5 {[%clk 01:30:36]} Qh3 {[%clk 00:00:00]}
20. Qf2 {[%clk 01:30:36]} Rc4 {[%clk 00:00:00]} 21. Nd4 {[%clk 01:30:36]} Rxa4
{[%clk 00:00:00]} 22. Rxa4 {[%clk 01:30:36]} Bxa4 {[%clk 00:00:00]} 23. Rg3
{[%clk 01:30:36]} Qh4 {[%clk 00:00:00]} 24. Nf3 {[%clk 01:30:36]} Qxf4 {[%clk
00:00:00]} 25. b3 {[%clk 01:30:36]} Qc1+ {[%clk 00:00:00]} 26. Ke2 {[%clk
01:30:36]} Qxc2+ {[%clk 00:00:00]} 27. Nd2 {[%clk 01:30:36]} Bb5+ {[%clk
00:00:00]} 28. Kf3 {[%clk 01:30:36]} Qf5+ {[%clk 00:00:00]} 0-1

[Event "32nd NATO Chess Championship"]
[Site "Tartu, Estonia"]
[Date "2022.06.29"]
[Round "4.31"]
[White "Coulon, Dominic"]
[Black "Kocur, Marc"]
[Result "0-1"]
[TimeControl "90 min + 30 sec increment from move one"]
[WhiteFideId "2621932"]
[BlackFideId "205036"]
[WhiteElo "1701"]
[BlackElo "1835"]

1. d4 {[%clk 01:30:55]} {[%emt 00:00:04]} Nc6 {[%clk 01:30:16]} {[%emt
00:00:44]} 2. e4 {[%clk 01:30:55]} {[%emt 00:00:30]} e5 {[%clk 01:30:33]}
{[%emt 00:00:11]} 3. d5 {[%clk 01:29:57]} {[%emt 00:01:29]} Nce7 {[%clk
01:30:53]} {[%emt 00:00:10]} 4. c4 {[%clk 01:25:24]} {[%emt 00:05:05]} Ng6
{[%clk 01:30:53]} {[%emt 00:00:29]} 5. Nc3 {[%clk 01:23:34]} {[%emt 00:02:20]}
Bb4 {[%clk 01:30:42]} {[%emt 00:00:41]} 6. Nge2 {[%clk 01:21:38]} {[%emt
00:02:25]} Nf6 {[%clk 01:30:22]} {[%emt 00:00:49]} 7. f3 {[%clk 01:20:24]}
{[%emt 00:01:44]} O-O {[%clk 01:26:56]} {[%emt 00:03:57]} 8. Be3 {[%clk
01:20:23]} {[%emt 00:00:31]} d6 {[%clk 01:18:50]} {[%emt 00:08:36]} 9. Qc2
{[%clk 01:13:20]} {[%emt 00:07:35]} a6 {[%clk 01:06:32]} {[%emt 00:12:48]} 10.
g3 {[%clk 01:09:12]} {[%emt 00:04:37]} Bd7 {[%clk 01:01:54]} {[%emt 00:05:07]}
11. Nc1 {[%clk 01:06:08]} {[%emt 00:03:35]} Bc5 {[%clk 01:00:55]} {[%emt
00:01:27]} 12. Bg5 {[%clk 01:05:03]} {[%emt 00:01:36]} h6 {[%clk 01:01:02]}
{[%emt 00:00:24]} 13. Bd2 {[%clk 01:05:27]} {[%emt 00:00:06]} Qe8 {[%clk
00:50:52]} {[%emt 00:10:39]} 14. Nd3 {[%clk 01:05:11]} {[%emt 00:00:46]} Ba7
{[%clk 00:50:23]} {[%emt 00:00:58]} 15. Bg2 {[%clk 00:58:13]} {[%emt 00:07:28]}
c6 {[%clk 00:44:50]} {[%emt 00:06:03]} 16. Ke2 {[%clk 00:50:50]} {[%emt
00:07:53]} Nh5 {[%clk 00:40:44]} {[%emt 00:04:36]} 17. Raf1 {[%clk 00:47:34]}
{[%emt 00:03:46]} f5 {[%clk 00:38:41]} {[%emt 00:02:33]} 18. Kd1 {[%clk
00:46:06]} {[%emt 00:01:58]} Nf6 {[%clk 00:37:32]} {[%emt 00:01:39]} 19. h4
{[%clk 00:44:41]} {[%emt 00:01:56]} Nh5 {[%clk 00:35:13]} {[%emt 00:02:48]} 20.
Be1 {[%clk 00:44:28]} {[%emt 00:00:43]} Qe7 {[%clk 00:33:01]} {[%emt 00:02:42]}
21. Qe2 {[%clk 00:40:15]} {[%emt 00:04:44]} f4 {[%clk 00:32:02]} {[%emt
00:01:28]} 22. g4 {[%clk 00:37:30]} {[%emt 00:03:15]} Ng3 {[%clk 00:32:26]}
{[%emt 00:00:05]} 23. Bxg3 {[%clk 00:37:49]} {[%emt 00:00:11]} fxg3 {[%clk
00:32:52]} {[%emt 00:00:04]} 24. h5 {[%clk 00:36:59]} {[%emt 00:01:20]} Nf4
{[%clk 00:33:15]} {[%emt 00:00:07]} 25. Nxf4 {[%clk 00:36:49]} {[%emt
00:00:41]} exf4 {[%clk 00:33:18]} {[%emt 00:00:26]} 26. Kc2 {[%clk 00:32:24]}
{[%emt 00:04:56]} b5 {[%clk 00:31:44]} {[%emt 00:02:03]} 27. Rd1 {[%clk
00:30:44]} {[%emt 00:02:10]} b4 {[%clk 00:31:50]} {[%emt 00:00:25]} 28. dxc6
{[%clk 00:24:44]} {[%emt 00:06:30]} bxc3 {[%clk 00:31:57]} {[%emt 00:00:23]} 29.
cxd7 {[%clk 00:24:48]} {[%emt 00:00:26]} cxb2 {[%clk 00:31:31]} {[%emt
00:00:56]} 30. Rd5 {[%clk 00:24:18]} {[%emt 00:00:59]} Qxd7 {[%clk 00:28:51]}
{[%emt 00:03:10]} 31. Qd3 {[%clk 00:24:22]} {[%emt 00:00:26]} Bc5 {[%clk
00:20:53]} {[%emt 00:08:28]} 32. Kb1 {[%clk 00:24:11]} {[%emt 00:00:41]} Qe7
{[%clk 00:16:24]} {[%emt 00:04:58]} 33. Re1 {[%clk 00:22:34]} {[%emt 00:02:08]}
Rab8 {[%clk 00:12:03]} {[%emt 00:04:51]} 34. Re2 {[%clk 00:22:17]} {[%emt
00:00:47]} Rb6 {[%clk 00:12:05]} {[%emt 00:00:27]} 35. e5 {[%clk 00:19:06]}
{[%emt 00:03:42]} Qc7 {[%clk 00:09:24]} {[%emt 00:03:11]} 36. e6 {[%clk
00:17:41]} {[%emt 00:01:55]} Qe7 {[%clk 00:09:46]} {[%emt 00:00:06]} 37. Rf5
{[%clk 00:16:16]} {[%emt 00:01:56]} Rxf5 {[%clk 00:09:43]} {[%emt 00:00:34]} 38.
Qxf5 {[%clk 00:16:17]} {[%emt 00:00:28]} Be3 {[%clk 00:09:59]} {[%emt
00:00:12]} 39. Qd5 {[%clk 00:15:30]} {[%emt 00:01:19]} Kh8 {[%clk 00:10:03]}
{[%emt 00:00:26]} 40. Rc2 {[%clk 00:12:02]} {[%emt 00:03:57]} Rb8 {[%clk
00:09:42]} {[%emt 00:00:51]} 41. Bf1 {[%clk 00:12:09]} {[%emt 00:00:24]} Re8
{[%clk 00:09:44]} {[%emt 00:00:28]} 42. Rxb2 {[%clk 00:11:33]} {[%emt
00:01:06]} Qh4 {[%clk 00:08:10]} {[%emt 00:02:03]} 43. Qc6 {[%clk 00:09:16]}
{[%emt 00:02:48]} Rg8 {[%clk 00:08:32]} {[%emt 00:00:08]} 44. Bd3 {[%clk
00:07:03]} {[%emt 00:02:43]} Qh1+ {[%clk 00:08:53]} {[%emt 00:00:08]} 45. Kc2
{[%clk 00:07:20]} {[%emt 00:00:14]} Qc1+ {[%clk 00:09:04]} {[%emt 00:00:18]} 46.
Kb3 {[%clk 00:03:30]} {[%emt 00:04:21]} Rb8+ {[%clk 00:08:59]} {[%emt
00:00:35]} 47. Ka4 {[%clk 00:03:57]} {[%emt 00:00:05]} Qxb2 {[%clk 00:09:18]}
{[%emt 00:00:10]} 0-1

[Event "32nd NATO Chess Championship"]
[Site "Tartu, Estonia"]
[Date "2022.06.29"]
[Round "4.32"]
[White "Steen, Kris"]
[Black "Ivbulis, Martins"]
[Result "0-1"]
[TimeControl "90 min + 30 sec increment from move one"]
[WhiteFideId "264571"]
[BlackFideId "11603496"]
[WhiteElo "1735"]
[BlackElo "1815"]

1. c4 e6 2. Nc3 d5 3. g3 Nf6 4. Bg2 a6 5. e3 dxc4 6. Qa4+ Bd7 7. Qxc4 Bc6 8.
Nf3 Be7 9. O-O O-O 10. d4 b5 11. Qb3 Qc8 12. Bd2 Qb7 13. Nh4 Bxg2 14. Nxg2 Nbd7
15. Rac1 c5 16. dxc5 Nxc5 17. Qd1 Rfd8 18. Qe2 b4 19. Nb1 Rac8 20. b3 h6 21.
Rfd1 Nfe4 22. Be1 Ng5 23. Rc4 Rxd1 24. Qxd1 Rd8 25. Qg4 {[%clk 01:30:56]} Nd3
{[%clk 01:30:49]} 0-1